fUST/lending_fUST_20240203
["ID","MTS","AMOUNT","RATE_DAILY","PERIOD"]
[313207709,1706949042354,-427.46004089,0.00027999,2]
[313207710,1706949042363,-500.0,0.00027999,2]
[313207711,1706949042372,-157.33040655,0.00027999,2]
[313207712,1706949042382,-156.9901161,0.00027999,2]
[313207713,1706949042391,-1245.71465963,0.00027999,2]
[313207714,1706949042400,-288.03329614,0.00027999,2]
[313207715,1706949042410,-1000.0,0.00027999,3]
[313207716,1706949042419,-1023.88339212,0.00027999,3]
[313207717,1706949042428,-500.0,0.00027999,2]
[313207718,1706949042438,-500.0,0.00027999,2]
[313207719,1706949042448,-500.0,0.00027999,2]
[313207720,1706949042457,-500.0,0.00027999,2]
[313207721,1706949042467,-500.0,0.00027999,2]
[313207722,1706949042476,-231.14549736,0.00027999,2]
[313207723,1706949042485,-500.0,0.00027999,2]
[313207724,1706949042494,-267.93621117,0.00027999,2]
[313207725,1706949042506,-500.0,0.00027999,2]
[313207726,1706949042515,-500.0,0.00027999,2]
[313207727,1706949042525,-464.26228076,0.00027999,2]
[313207728,1706949042534,-500.0,0.00027999,2]
[313207729,1706949042545,-500.0,0.00027999,2]
[313207730,1706949042554,-441.0192481,0.00027999,2]
[313207731,1706949042563,-500.0,0.00027999,2]
[313207732,1706949042572,-500.0,0.00027999,2]
[313207733,1706949042582,-500.0,0.00027999,2]
[313207734,1706949042591,-500.0,0.00027999,2]
[313207735,1706949042601,-177.05054153,0.00027999,2]
[313207736,1706949042610,-275.77800303,0.00027999,2]
[313207737,1706949042619,-160.97379388,0.00027999,2]
[313207738,1706949042628,-500.0,0.00027999,2]
[313207739,1706949042637,-500.0,0.00027999,2]
[313207740,1706949042646,-500.0,0.00027999,2]
[313207741,1706949042655,-259.0506465,0.00028,3]
[313207742,1706949042663,-87254.42062075,0.00028,2]
[313207743,1706949042673,-1381.5688834,0.00028,2]
[313207744,1706949042682,-51099.57217898,0.00028,2]
[313207745,1706949042691,-64929.49941037,0.00028,2]
[313207746,1706949042700,-459.92906339,0.00028,3]
[313207747,1706949042709,-1922.56103292,0.00028,2]
[313207748,1706949042718,-600.0,0.00028,2]
[313207749,1706949042727,-151.457837,0.00028,2]
[313207750,1706949042736,-500.186128,0.00028,2]
[313207751,1706949042745,-151.0,0.00028,2]
[313207752,1706949042754,-151.0,0.00028,2]
[313207753,1706949042762,-151.0,0.00028,2]
[313207754,1706949042772,-151.0,0.00028,2]
[313207755,1706949042781,-151.0,0.00028,2]
[313207756,1706949042790,-151.0,0.00028,2]
[313207757,1706949042799,-151.0,0.00028,2]
[313207758,1706949042808,-386.65582459,0.00028041,2]
[313207759,1706949042817,-1360.54955836,0.00028044,2]
[313207760,1706949042826,-2002.74537642,0.00028045,2]
[313207761,1706949042835,-1274.62613719,0.00028045,2]
[313207762,1706949042844,-500.0,0.00028219,2]
[313207763,1706949042853,-500.0,0.00028219,2]
[313207764,1706949042861,-299.73002939,0.00028219,2]
[313207765,1706949042871,-500.0,0.00028219,2]
[313207766,1706949042880,-500.0,0.00028219,2]
[313207767,1706949042891,-500.0,0.00028219,2]
[313207768,1706949042900,-500.0,0.00028219,2]
[313207769,1706949042909,-500.0,0.00028219,2]
[313207770,1706949042918,-500.0,0.00028219,2]
[313207771,1706949042928,-500.0,0.00028219,2]
[313207773,1706949042937,-500.0,0.00028219,2]
[313207775,1706949042946,-500.0,0.00028219,2]
[313207777,1706949042955,-500.0,0.00028219,2]
[313207778,1706949042964,-267.78809075,0.00028219,2]
[313207779,1706949042974,-500.0,0.00028219,2]
[313207780,1706949042983,-500.0,0.00028219,2]
[313207782,1706949042992,-500.0,0.00028219,2]
[313207783,1706949043002,-500.0,0.00028219,2]
[313207785,1706949043011,-500.0,0.00028219,2]
[313207787,1706949043021,-500.0,0.00028219,2]
[313207788,1706949043030,-617.54,0.00028219,2]
[313207789,1706949043039,-533.9,0.00028219,2]
[313207793,1706949043132,-1386.37,0.00028219,2]
[313207794,1706949043141,-1319.28,0.00028219,2]
[313207795,1706949043151,-500.0,0.00028219,2]
[313207797,1706949043160,-500.0,0.00028219,2]
[313207799,1706949043169,-1904.9,0.00028219,2]
[313207801,1706949043178,-500.0,0.00028219,2]
[313207802,1706949043187,-500.0,0.00028219,2]
[313207804,1706949043196,-500.0,0.00028219,2]
[313207805,1706949043205,-500.0,0.00028219,2]
[313207807,1706949043215,-785.79,0.00028219,2]
[313207809,1706949043224,-501.71,0.00028219,2]
[313207811,1706949043233,-758.7,0.00028219,2]
[313207812,1706949043242,-3457.36,0.00028219,2]
[313207813,1706949043251,-301.93766775,0.00028319,2]
[313207814,1706949043260,-698.0144425,0.00028319,2]
[313207815,1706949043269,-500.0,0.00028493,2]
[313207816,1706949043278,-500.0,0.00028493,2]
[313207817,1706949043287,-500.0,0.00028493,2]
[313207818,1706949043296,-151.0,0.00028493,2]
[313207819,1706949043306,-500.0,0.00028493,2]
[313207820,1706949043315,-638.52,0.00028493,2]
[313207821,1706949043325,-500.0,0.00028493,2]
[313207822,1706949043335,-500.0,0.00028493,2]
[313207823,1706949043344,-617.54,0.00028493,2]
[313207824,1706949043354,-151.0,0.00028493,2]
[313207825,1706949043364,-1386.37,0.00028493,2]
[313207826,1706949043375,-532.16944411,0.00028493,2]
[313207827,1706949043490,-252.30064042,0.00023104,2]
[313207828,1706949043505,-1551.03823863,0.00023104,2]
[313207829,1706949043514,-2604.35702447,0.00027387,3]
[313207830,1706949043539,-2110.35958995,0.00026414,2]
[313207831,1706949043548,-4136.33297553,0.00027387,3]
[313207832,1706949043559,-500.0,0.00027671,2]
[313207833,1706949043569,-500.0,0.00027945,2]
[313207834,1706949043578,-270.8136147,0.00028219,2]
[313207835,1706949043589,-787.11055589,0.00028493,2]
[313207836,1706949043599,-500.0,0.00028493,2]
[313207837,1706949043609,-1904.9,0.00028493,2]
[313207838,1706949043619,-500.0,0.00028493,2]
[313207839,1706949043627,-500.0,0.00028493,2]
[313207840,1706949043637,-500.0,0.00028493,2]
[313207841,1706949043647,-785.79,0.00028493,2]
[313207842,1706949043657,-501.71,0.00028493,2]
[313207843,1706949043667,-758.7,0.00028493,2]
[313207844,1706949043675,-3457.36,0.00028493,2]
[313207845,1706949043684,-600.0,0.000285,2]
[313207846,1706949043693,-3314.09113788,0.000286,4]
[313207847,1706949043704,-488.13011189,0.000286,4]
[313207848,1706949043714,-280.0,0.00028627,15]
[313207849,1706949043723,-855.703625,0.00028645,2]
[313207850,1706949043731,-548.709029,0.00028645,2]
[313207851,1706949043741,-624.08907086,0.00028767,2]
[313207852,1706949043750,-500.0,0.00028767,2]
[313207853,1706949043758,-500.0,0.00028767,2]
[313207854,1706949043767,-500.0,0.00028767,2]
[313207855,1706949043776,-372.41193904,0.00028767,2]
[313207856,1706949043787,-225.70009459,0.00028767,2]
[313207857,1706949043796,-251.57441506,0.00028767,2]
[313207858,1706949043812,-248.42558494,0.00028767,2]
[313207859,1706949043822,-44.83961882,0.00028767,2]
[313207907,1706949957317,151.02114296,0.00028273,30]
[313207908,1706949957374,151.02114296,0.00027707,120]
[313207914,1706950197390,151.02114296,0.0002844,30]
[313207915,1706950197448,151.02114296,0.00027871,120]
[313207962,1706950232399,-155.02170304,0.00021917,2]
[313207963,1706950232409,-166.920566,0.00021918,2]
[313207964,1706950232419,-261.44545731,0.00021978,7]
[313207966,1706950232428,-155.02170304,0.00021979,2]
[313207968,1706950232437,-3608.88029851,0.00021986,2]
[313207970,1706950232453,-861.94535504,0.00021986,2]
[313208027,1706950238540,-717.4770118,0.00021917,2]
[313208028,1706950238549,-598.15245316,0.00021986,2]
[313208029,1706950238561,-10582.50114563,0.00021986,2]
[313208030,1706950238570,-24900.0,0.00021987,2]
[313208031,1706950238578,-730.1807676,0.00022136,2]
[313208032,1706950238587,-192.830686,0.00022358,2]
[313208033,1706950238597,-183.208202,0.0002267,2]
[313208034,1706950238607,-9959.98060866,0.00023,2]
[313208036,1706950238616,-1431.7851123,0.00023283,2]
[313208038,1706950238625,-6071.89028395,0.00023283,2]
[313208040,1706950238633,-155.02325349,0.00023968,4]
[313208042,1706950238642,-338.61078298,0.00024431,2]
[313208044,1706950238652,-1935.01724955,0.00024431,2]
[313208046,1706950238661,-679.86163762,0.00024431,2]
[313208048,1706950238670,-180.7763201,0.00024432,2]
[313208050,1706950238680,-166.920566,0.00024482,2]
[313208052,1706950238689,-170.802432,0.00024751,2]
[313208054,1706950238698,-5065.00632731,0.0002479,2]
[313208056,1706950238707,-11867.26499318,0.0002479,2]
[313208058,1706950238716,-151.0,0.00024956,2]
[313208060,1706950238726,-4889.2,0.00025459,3]
[313208061,1706950238735,-5867.04,0.00025469,3]
[313208063,1706950238744,-534.69538579,0.00025478,2]
[313208066,1706950238753,-200.0,0.00025479,2]
[313208067,1706950238762,-200.0,0.00025604,7]
[313208069,1706950238771,-1824.30696156,0.000259,2]
[313208071,1706950238781,-913.52520602,0.0002663,2]
[313208073,1706950238790,-156.9901161,0.00026631,2]
[313208075,1706950238798,-500.0,0.00026631,2]
[313208078,1706950238808,-155.50054411,0.00026631,2]
[313208080,1706950238817,-427.46004089,0.00026631,2]
[313208082,1706950238826,-637.36337543,0.00026631,2]
[313208084,1706950238835,-299.32687714,0.00026631,2]
[313208086,1706950238844,-175.056674,0.00026631,2]
[313208088,1706950238856,-848.00898149,0.00026631,2]
[313208090,1706950238864,-157.33040655,0.00026631,2]
[313208092,1706950238873,-156.25070942,0.00026631,2]
[313208094,1706950238882,-230.88142086,0.00026631,2]
[313208096,1706950238891,-1245.71465963,0.00026631,2]
[313208098,1706950238900,-155.79983419,0.00026631,2]
[313208100,1706950238909,-6799.23859091,0.00026631,2]
[313208102,1706950238918,-591.99312524,0.00026631,2]
[313208104,1706950238927,-1198.88608511,0.00026631,2]
[313208106,1706950238936,-156.8872007,0.00026631,2]
[313208108,1706950238945,-155.69605993,0.00026631,2]
[313208110,1706950238955,-332.68324877,0.00026631,2]
[313208112,1706950238963,-1249.89896506,0.00026631,2]
[313208114,1706950238972,-2293.59373872,0.00026631,2]
[313208116,1706950238981,-331.8109321,0.00026631,2]
[313208118,1706950238990,-155.72853088,0.00026631,2]
[313208120,1706950238999,-693.32314678,0.00026631,2]
[313208122,1706950239008,-4318.96555713,0.00026632,2]
[313208124,1706950239018,-151.0,0.00026912,2]
[313208126,1706950239027,-454.59894632,0.00027098,2]
[313208128,1706950239036,-450.0,0.00027099,2]
[313208130,1706950239046,-500.0,0.00027099,2]
[313208132,1706950239055,-335.04341215,0.00027099,2]
[313208134,1706950239064,-500.0,0.00027099,2]
[313208136,1706950239073,-304.34172296,0.00027099,2]
[313208138,1706950239082,-500.0,0.00027099,2]
[313208140,1706950239091,-500.0,0.00027099,2]
[313208141,1706950239100,-500.0,0.00027099,2]
[313208144,1706950239109,-500.0,0.00027099,2]
[313208146,1706950239119,-500.0,0.00027099,2]
[313208148,1706950239128,-500.0,0.00027099,2]
[313208150,1706950239137,-500.0,0.00027099,2]
[313208151,1706950239146,-500.0,0.00027099,2]
[313208153,1706950239156,-500.0,0.00027099,2]
[313208156,1706950239165,-500.0,0.00027099,2]
[313208157,1706950239174,-500.0,0.00027099,2]
[313208159,1706950239183,-500.0,0.00027099,2]
[313208162,1706950239193,-500.0,0.00027099,2]
[313208163,1706950239202,-500.0,0.00027099,2]
[313208165,1706950239212,-500.0,0.00027099,2]
[313208168,1706950239222,-500.0,0.00027099,2]
[313208170,1706950239231,-500.0,0.00027099,2]
[313208171,1706950239241,-500.0,0.00027099,2]
[313208174,1706950239251,-500.0,0.00027099,2]
[313208176,1706950239261,-500.0,0.00027099,2]
[313208177,1706950239270,-500.0,0.00027099,2]
[313208179,1706950239279,-600.0,0.00027099,2]
[313208181,1706950239289,-500.0,0.00027099,2]
[313208183,1706950239298,-500.0,0.00027099,2]
[313208185,1706950239308,-500.0,0.00027099,2]
[313208187,1706950239318,-500.0,0.00027099,2]
[313208189,1706950239327,-500.0,0.00027099,2]
[313208191,1706950239337,-500.0,0.00027099,2]
[313208193,1706950239346,-500.0,0.00027099,2]
[313208195,1706950239355,-500.0,0.00027099,2]
[313208197,1706950239364,-500.0,0.00027099,2]
[313208199,1706950239373,-500.0,0.00027099,2]
[313208201,1706950239382,-500.0,0.00027099,2]
[313208203,1706950239391,-500.0,0.00027099,2]
[313208205,1706950239400,-500.0,0.00027099,2]
[313208207,1706950239409,-500.0,0.00027099,2]
[313208209,1706950239418,-300.0,0.00027099,2]
[313208210,1706950239427,-500.0,0.00027099,2]
[313208212,1706950239436,-500.0,0.00027099,2]
[313208214,1706950239445,-500.0,0.00027099,2]
[313208216,1706950239454,-210.0,0.00027099,2]
[313208218,1706950239463,-500.0,0.00027099,2]
[313208220,1706950239473,-515.39070937,0.00027099,2]
[313208222,1706950239481,-500.0,0.00027099,2]
[313208224,1706950239490,-500.0,0.00027099,2]
[313208226,1706950239499,-311.37143275,0.00027099,2]
[313208228,1706950239508,-500.0,0.00027099,2]
[313208230,1706950239517,-500.0,0.00027099,2]
[313208232,1706950239526,-500.0,0.00027099,2]
[313208234,1706950239535,-500.0,0.00027099,2]
[313208236,1706950239544,-48933.02600869,0.000271,2]
[313208238,1706950239553,-3944.74019732,0.00027329,4]
[313208240,1706950239563,-1000.0,0.00027396,3]
[313208242,1706950239572,-1023.88339212,0.00027396,3]
[313208244,1706950239580,-299.73002939,0.00027397,2]
[313208246,1706950239589,-500.0,0.00027397,2]
[313208248,1706950239599,-500.0,0.00027397,2]
[313208250,1706950239608,-500.0,0.00027397,2]
[313208252,1706950239617,-500.0,0.00027397,2]
[313208254,1706950239627,-500.0,0.00027397,2]
[313208256,1706950239636,-500.0,0.00027397,2]
[313208258,1706950239644,-500.0,0.00027397,2]
[313208260,1706950239653,-432.16430821,0.00027397,2]
[313208262,1706950239662,-500.0,0.00027397,2]
[313208264,1706950239671,-372.95353061,0.00027397,2]
[313208265,1706950239680,-500.0,0.00027397,2]
[313208267,1706950239690,-500.0,0.00027397,2]
[313208269,1706950239699,-500.0,0.00027397,2]
[313208271,1706950239708,-320.28093465,0.00027397,2]
[313208273,1706950239718,-500.0,0.00027397,2]
[313208275,1706950239727,-500.0,0.00027397,2]
[313208277,1706950239736,-301.93124772,0.00027397,2]
[313208279,1706950239745,-505.61619828,0.00027397,2]
[313208281,1706950239754,-505.61402559,0.00027397,7]
[313208283,1706950239763,-176.33972775,0.00027397,2]
[313208285,1706950239772,-505.47567208,0.00027397,2]
[313208287,1706950239782,-503.37405009,0.00027397,2]
[313208289,1706950239791,-500.0,0.00027397,2]
[313208291,1706950239800,-240.43038265,0.00027397,2]
[313208293,1706950239809,-500.0,0.00027397,2]
[313208295,1706950239818,-500.0,0.00027397,2]
[313208297,1706950239828,-505.95287227,0.00027397,2]
[313208299,1706950239837,-530.44382497,0.00027397,2]
[313208301,1706950239846,-501.95979755,0.00027397,2]
[313208303,1706950239855,-509.16728415,0.00027397,2]
[313208305,1706950239866,-501.56367019,0.00027397,2]
[313208307,1706950239875,-500.0,0.00027397,2]
[313208309,1706950239884,-500.0,0.00027397,2]
[313208311,1706950239893,-500.0,0.00027397,2]
[313208313,1706950239902,-500.0,0.00027397,2]
[313208315,1706950239911,-500.0,0.00027397,2]
[313208317,1706950239920,-194.57581154,0.00027397,2]
[313208319,1706950239930,-500.0,0.00027397,2]
[313208321,1706950239939,-500.0,0.00027397,2]
[313208323,1706950239948,-500.0,0.00027397,2]
[313208325,1706950239958,-500.0,0.00027397,2]
[313208327,1706950239966,-500.0,0.00027397,2]
[313208329,1706950239976,-500.0,0.00027397,2]
[313208330,1706950239985,-500.0,0.00027397,2]
[313208332,1706950239994,-500.0,0.00027397,2]
[313208334,1706950240003,-3313.3,0.00027397,2]
[313208336,1706950240012,-500.0,0.00027397,2]
[313208338,1706950240021,-500.0,0.00027397,2]
[313208340,1706950240030,-500.0,0.00027397,2]
[313208342,1706950240039,-500.0,0.00027397,2]
[313208344,1706950240048,-695.48,0.00027397,2]
[313208346,1706950240057,-500.0,0.00027397,2]
[313208348,1706950240066,-624.15640998,0.00027397,2]
[313208350,1706950240075,-500.0,0.00027397,2]
[313208352,1706950240084,-500.0,0.00027397,2]
[313208354,1706950240093,-500.0,0.00027397,2]
[313208356,1706950240103,-508.84074128,0.00027397,2]
[313208358,1706950240112,-474.96707827,0.00027397,2]
[313208360,1706950240121,-504.62288054,0.00027397,2]
[313208362,1706950240131,-500.0,0.00027397,2]
[313208364,1706950240140,-500.0,0.00027397,2]
[313208366,1706950240149,-615.67,0.00027397,2]
[313208368,1706950240158,-505.88117629,0.00027397,2]
[313208370,1706950240167,-500.0,0.00027397,2]
[313208372,1706950240176,-513.93419891,0.00027397,2]
[313208374,1706950240185,-500.0,0.00027397,2]
[313208376,1706950240194,-1286.48,0.00027397,2]
[313208378,1706950240203,-500.0,0.00027397,2]
[313208380,1706950240212,-500.0,0.00027397,2]
[313208382,1706950240221,-500.0,0.00027397,2]
[313208384,1706950240230,-190.19588043,0.00027397,2]
[313208386,1706950240242,-319.28701932,0.00027397,2]
[313208388,1706950240251,-500.0,0.00027397,2]
[313208390,1706950240260,-500.0,0.00027397,2]
[313208392,1706950240269,-502.61709919,0.00027397,2]
[313208394,1706950240279,-500.0,0.00027397,2]
[313208396,1706950240288,-504.4767073,0.00027397,2]
[313208398,1706950240297,-500.0,0.00027397,2]
[313208400,1706950240306,-500.0,0.00027397,2]
[313208402,1706950240315,-1386.61,0.00027397,2]
[313208404,1706950240325,-500.0,0.00027397,2]
[313208406,1706950240336,-500.0,0.00027397,2]
[313208408,1706950240345,-491.06629373,0.00027397,2]
[313208410,1706950240355,-500.0,0.00027397,2]
[313208412,1706950240364,-500.0,0.00027397,2]
[313208414,1706950240374,-500.0,0.00027397,2]
[313208416,1706950240383,-500.0,0.00027397,2]
[313208428,1706950240483,-500.0,0.00027397,2]
[313208430,1706950240494,-500.0,0.00027397,2]
[313208432,1706950240504,-502.0299749,0.00027397,2]
[313208434,1706950240513,-1825.53,0.00027397,2]
[313208436,1706950240522,-503.8622474,0.00027397,2]
[313208438,1706950240531,-1000.0,0.00027397,2]
[313208440,1706950240540,-500.0,0.00027397,2]
[313208442,1706950240549,-645.36468903,0.00027397,2]
[313208444,1706950240558,-500.0,0.00027397,2]
[313208445,1706950240566,-374.82154736,0.00027397,2]
[313208446,1706950240575,-500.0,0.00027397,2]
[313208448,1706950240583,-500.0,0.00027397,2]
[313208450,1706950240592,-4054.53,0.00027397,2]
[313208452,1706950240603,-753.05,0.00027397,2]
[313208454,1706950240612,-150.247468,0.00027397,2]
[313208455,1706950240621,-152.86835164,0.00027568,2]
[313208459,1706950240631,-500.0,0.00027671,2]
[313208462,1706950240641,-500.0,0.00027671,2]
[313208465,1706950240649,-500.0,0.00027671,2]
[313208468,1706950240658,-500.0,0.00027671,2]
[313208471,1706950240667,-267.78809075,0.00027671,2]
[313208473,1706950240676,-500.0,0.00027671,2]
[313208478,1706950240686,-500.0,0.00027671,2]
[313208480,1706950240695,-500.0,0.00027671,2]
[313208484,1706950240705,-500.0,0.00027671,2]
[313208487,1706950240715,-500.0,0.00027671,2]
[313208490,1706950240724,-500.0,0.00027671,2]
[313208493,1706950240733,-500.0,0.00027671,2]
[313208496,1706950240742,-500.0,0.00027671,2]
[313208499,1706950240751,-500.0,0.00027671,2]
[313208501,1706950240760,-500.0,0.00027671,2]
[313208504,1706950240769,-500.0,0.00027671,2]
[313208507,1706950240779,-500.0,0.00027671,2]
[313208510,1706950240788,-500.0,0.00027671,2]
[313208514,1706950240798,-500.0,0.00027671,2]
[313208517,1706950240807,-500.0,0.00027671,2]
[313208519,1706950240817,-500.0,0.00027671,2]
[313208521,1706950240826,-500.0,0.00027671,2]
[313208523,1706950240836,-3313.3,0.00027671,2]
[313208525,1706950240844,-500.0,0.00027671,2]
[313208527,1706950240858,-500.0,0.00027671,2]
[313208529,1706950240869,-500.0,0.00027671,2]
[313208531,1706950240878,-500.0,0.00027671,2]
[313208533,1706950240887,-695.48,0.00027671,2]
[313208535,1706950240896,-500.0,0.00027671,2]
[313208537,1706950240905,-500.0,0.00027671,2]
[313208539,1706950240914,-500.0,0.00027671,2]
[313208541,1706950240923,-500.0,0.00027671,2]
[313208543,1706950240932,-500.0,0.00027671,2]
[313208545,1706950240941,-416.71414332,0.00027671,2]
[313208547,1706950240950,-615.67,0.00027671,2]
[313208549,1706950240959,-500.0,0.00027671,2]
[313208551,1706950240968,-512.4280412,0.00027671,2]
[313208553,1706950240977,-1286.48,0.00027671,2]
[313208555,1706950240986,-500.0,0.00027671,2]
[313208557,1706950240996,-500.0,0.00027671,2]
[313208559,1706950241005,-500.0,0.00027671,2]
[313208561,1706950241014,-500.0,0.00027671,2]
[313208563,1706950241023,-500.0,0.00027671,2]
[313208565,1706950241033,-500.0,0.00027671,2]
[313208567,1706950241042,-503.81745858,0.00027671,2]
[313208569,1706950241051,-1386.61,0.00027671,2]
[313208571,1706950241061,-500.0,0.00027671,2]
[313208573,1706950241069,-500.0,0.00027671,2]
[313208575,1706950241078,-500.0,0.00027671,2]
[313208577,1706950241087,-500.0,0.00027671,2]
[313208579,1706950241096,-525.34101276,0.00027671,2]
[313208581,1706950241107,-500.49854135,0.00027671,2]
[313208583,1706950241117,-500.0,0.00027671,2]
[313208585,1706950241125,-1825.53,0.00027671,2]
[313208586,1706950241134,-500.0,0.00027671,2]
[313208589,1706950241144,-500.0,0.00027671,2]
[313208590,1706950241153,-500.0,0.00027671,2]
[313208592,1706950241162,-500.0,0.00027671,2]
[313208594,1706950241171,-753.05,0.00027671,2]
[313208596,1706950241180,-4054.53,0.00027671,2]
[313208598,1706950241189,-3000.0,0.000277,4]
[313208600,1706950241198,-765.40311766,0.00027707,2]
[313208602,1706950241207,-2000.0,0.000279,2]
[313208604,1706950241215,-437.02503165,0.000279,2]
[313208606,1706950241224,-2000.0,0.0002791,2]
[313208608,1706950241234,-2000.0,0.0002792,2]
[313208610,1706950241245,-2875.864551,0.0002793,2]
[313208612,1706950241253,-500.0,0.00027945,2]
[313208614,1706950241262,-500.0,0.00027945,2]
[313208616,1706950241271,-500.0,0.00027945,2]
[313208617,1706950241280,-500.0,0.00027945,2]
[313208619,1706950241290,-500.0,0.00027945,2]
[313208621,1706950241299,-500.0,0.00027945,2]
[313208623,1706950241308,-500.0,0.00027945,2]
[313208625,1706950241318,-500.0,0.00027945,2]
[313208627,1706950241327,-500.0,0.00027945,2]
[313208628,1706950241336,-500.0,0.00027945,2]
[313208630,1706950241345,-500.0,0.00027945,2]
[313208633,1706950241356,-500.0,0.00027945,2]
[313208634,1706950241366,-500.0,0.00027945,2]
[313208636,1706950241375,-3313.3,0.00027945,2]
[313208638,1706950241385,-500.0,0.00027945,2]
[313208640,1706950241394,-500.0,0.00027945,2]
[313208642,1706950241403,-500.0,0.00027945,2]
[313208644,1706950241413,-695.48,0.00027945,2]
[313208646,1706950241423,-500.0,0.00027945,2]
[313208648,1706950241432,-500.0,0.00027945,2]
[313208650,1706950241441,-500.0,0.00027945,2]
[313208652,1706950241450,-615.67,0.00027945,2]
[313208654,1706950241459,-500.0,0.00027945,2]
[313208656,1706950241469,-1286.48,0.00027945,2]
[313208658,1706950241478,-500.0,0.00027945,2]
[313208660,1706950241487,-500.0,0.00027945,2]
[313208662,1706950241496,-500.0,0.00027945,2]
[313208664,1706950241505,-500.0,0.00027945,2]
[313208666,1706950241514,-637.88884278,0.00027945,2]
[313208668,1706950241523,-500.0,0.00027945,2]
[313208670,1706950241533,-1386.61,0.00027945,2]
[313208672,1706950241542,-500.0,0.00027945,2]
[313208674,1706950241551,-500.0,0.00027945,2]
[313208676,1706950241560,-500.0,0.00027945,2]
[313208678,1706950241570,-500.0,0.00027945,2]
[313208680,1706950241579,-500.0,0.00027945,2]
[313208682,1706950241588,-1825.53,0.00027945,2]
[313208684,1706950241601,-500.0,0.00027945,2]
[313208686,1706950241611,-500.0,0.00027945,2]
[313208688,1706950241620,-500.0,0.00027945,2]
[313208690,1706950241629,-500.0,0.00027945,2]
[313208692,1706950241638,-753.05,0.00027945,2]
[313208694,1706950241647,-4054.53,0.00027945,2]
[313208696,1706950241657,-386.65582459,0.00027998,2]
[313208698,1706950241666,-1274.62613719,0.00027998,2]
[313208699,1706950241676,-2002.74537642,0.00027998,2]
[313208702,1706950241686,-1360.54955836,0.00027998,2]
[313208703,1706950241695,-16890.11562115,0.00028,2]
[313208705,1706950241704,-64929.49941037,0.00028,2]
[313208707,1706950241712,-459.92906339,0.00028,3]
[313208709,1706950241721,-1381.5688834,0.00028,2]
[313208711,1706950241731,-1922.56103292,0.00028,2]
[313208713,1706950241740,-578.0,0.000281,2]
[313208715,1706950241749,-280.0,0.00028164,15]
[313208717,1706950241757,-500.0,0.00028219,2]
[313208719,1706950241766,-500.0,0.00028219,2]
[313208721,1706950241775,-500.0,0.00028219,2]
[313208723,1706950241784,-500.0,0.00028219,2]
[313208725,1706950241793,-500.0,0.00028219,2]
[313208727,1706950241802,-500.0,0.00028219,2]
[313208729,1706950241812,-500.0,0.00028219,2]
[313208731,1706950241821,-500.0,0.00028219,2]
[313208733,1706950241830,-3313.3,0.00028219,2]
[313208735,1706950241839,-500.0,0.00028219,2]
[313208737,1706950241848,-500.0,0.00028219,2]
[313208739,1706950241857,-695.48,0.00028219,2]
[313208741,1706950241867,-500.0,0.00028219,2]
[313208742,1706950241876,-500.0,0.00028219,2]
[313208743,1706950241885,-615.67,0.00028219,2]
[313208744,1706950241895,-500.0,0.00028219,2]
[313208745,1706950241904,-1286.48,0.00028219,2]